Cogmind - Beta 11 X8 @@@ ROGUE MODE // 2021.10.25 @ 21:54:55 Player: Runia Result: Destroyed by S-10 Pest with Light Assault Rifle Performance ------------- Evolutions (1) 500 Regions Visited (6) 1200 Robots Destroyed (68) 340 Value Destroyed (1531) 1531 Prototype IDs (13) 260 Alien Tech Used (0) 0 Bonus (-18) -18 TOTAL SCORE: 3813 Bonus ------- Follower Combat Kills 93 Friendly Fire -111 Cogmind --------- Core Integrity 0/400 Matter 49/300 Energy 310/310 System Corruption 0% Temperature Cool (9) Movement Walking (260) Ox2 Location -8/Mines Parts ------- > --- POWER (1) -------- Reinforced Fission Core > --- PROPULSION (2) --- Advanced Myomer Leg Advanced Myomer Leg > --- UTILITY (4) ------ High-capacity Storage Unit Experimental Targeting Computer > --- WEAPON (2) ------- Mini Grenade Launcher > --- INVENTORY (20) --- Advanced Treads Advanced Treads Advanced Treads Combat Antigrav System Experimental Heat Sink Advanced Weapon Cycler Advanced Transmission Jammer Advanced Component Analysis Suite System Purifier AS-neutralizer No. 17b Improved Assault Rifle Minigun 8R-AWN's Boregun 8R-AWN's Boregun Plasma Cutter Peak State ------------ > --- POWER ------------ Light Neutrino Core > --- PROPULSION ------- Advanced Myomer Leg Advanced Myomer Leg > --- UTILITY ---------- Large Storage Unit Experimental Targeting Computer Advanced Weapon Cycler System Purifier > --- WEAPON ----------- Minigun Minigun > --- INVENTORY -------- Reinforced Fission Core Advanced Treads Advanced Treads Experimental Heat Sink Gravity Neutralizing Apparatus Advanced Transmission Jammer 8R-AWN's Armor/EX AS-neutralizer No. 17b Heavy Assault Rifle Improved Assault Rifle 8R-AWN's Boregun 8R-AWN's Boregun Rocket Launcher Mini Grenade Launcher [Rating: 61] Favorites ----------- Power Light Angular Momentum Engine Engine Light Angular Momentum Engine Power Core Reinforced Fission Core Propulsion Advanced Treads Treads Advanced Treads Leg Aluminum Leg Utility Large Storage Unit Device Structural Scanner Storage Large Storage Unit Processor Experimental Targeting Computer Protection Medium Armor Plating Weapon Minigun Energy Gun EM Pulse Gun Ballistic Gun Minigun Launcher Grenade Launcher Special Weapon Plasma Cutter Build | -11 -10 -10 -9 -9 -9 -8 ------- Run | Scr Mat Min Mat Min Exi Min Slots Evolved 2 | . . . 2 . . . Power . | . . . . . . . Propulsion . | . . . . . . . Utility 2 | . . . 2 . . . Weapon . | . . . . . . . Parts Attached 82 | . 11 7 18 . 36 10 Power 7 | . 1 1 2 . 3 . Engine 5 | . 1 1 2 . 1 . Core 2 | . . . . . 2 . Reactor . | . . . . . . . Propulsion 12 | . 2 . 2 . 6 2 Treads 8 | . 2 . 2 . 4 . Leg 4 | . . . . . 2 2 Wheel . | . . . . . . . Hover . | . . . . . . . Flight . | . . . . . . . Utility 23 | . 5 1 5 . 11 1 Device 6 | . . . 1 . 5 . Storage 7 | . 4 . . . 3 . Processor 1 | . . . . . 1 . Hackware . | . . . . . . . Protection 9 | . 1 1 4 . 2 1 Artifact . | . . . . . . . Weapon 40 | . 3 5 9 . 16 7 Energy Gun 2 | . 2 . . . . . Energy Cannon . | . . . . . . . Ballistic Gun 24 | . . 4 6 . 11 3 Ballistic Cannon . | . . . . . . . Launcher 12 | . 1 1 3 . 3 4 Special Weapon 2 | . . . . . 2 . Impact Weapon . | . . . . . . . Slashing Weapon . | . . . . . . . Piercing Weapon . | . . . . . . . Special Melee Weapon . | . . . . . . . Unidentified Prototypes 9 | . . . . . 9 . Parts Lost 18 | . 4 1 3 . 7 3 Power 3 | . 1 . 1 . 1 . Propulsion 1 | . . . . . 1 . Utility 5 | . . 1 . . 3 1 Weapon 9 | . 3 . 2 . 2 2 Highest Loss Streak 5 | . 2 1 1 . 5 3 Average Slot Usage (%) 95 | . 92 99 96 100 95 81 Engine 10 | . 13 14 10 11 9 . Core 1 | . . . . . 1 11 Treads 18 | . 2 28 22 22 19 21 Leg 5 | . 25 . . . 3 . Device 5 | . . . 9 11 8 . Storage 12 | . 14 14 11 11 13 11 Processor 2 | . . . . . 4 11 Protection 13 | . 7 13 21 22 13 5 Energy Gun 1 | . 9 . . . . . Ballistic Gun 19 | . 11 27 21 11 20 18 Launcher 2 | . 7 . . 11 1 2 Naked Turns . | . . . . . . . Heaviest Build 92 | 11 32 32 50 48 91 92 Greatest Support 60 | 20 40 40 44 44 60 44 Greatest Overweight (x) 3 | . 1 . 1 1 2 3 Average Overweight (x) . | . . . . 1 . 1 Largest Inventory Capacity 20 | 8 15 15 15 15 20 20 Average Capacity 14 | 8 10 15 15 15 15 20 Most Carried 19 | 5 7 10 15 14 19 18 Average Carried 11 | 4 4 7 13 14 14 16 Final Capacity 20 | 8 15 15 15 15 20 20 Final Carried 17 | 4 4 10 14 14 17 15 Class Distribution -------------------- 89% | Mutant 10% | Scavenger-Mutant Dominant Class ---------------- Mutant | -10/Materials Mutant | -10/Mines Mutant | -9/Materials Mutant | -9/Mines Mutant | -9/Exiles Mutant | -8/Mines Resources | -11 -10 -10 -9 -9 -9 -8 ----------- Run | Scr Mat Min Mat Min Exi Min Matter Collected 2724 | 200 84 145 503 . 1644 148 Remotely . | . . . . . . . Salvage Created 2293 | . 592 180 718 . 605 198 Parts 178 | . 38 15 34 . 76 15 Haulers Intercepted 5 | . 1 . 4 . . . Recyclers Shooed 3 | . 2 . 1 . . . Parts Field Recycled . | . . . . . . . Retrieved Matter . | . . . . . . . Parts Self-Destructed . | . . . . . . . Prevented . | . . . . . . . Kills | -11 -10 -10 -9 -9 -9 -8 ------- Run | Scr Mat Min Mat Min Exi Min Combat Hostiles Destroyed 44 | . 14 7 10 . 5 8 Melee 1 | . . . . . . 1 Guns 20 | . 9 3 6 . 1 1 AOE 23 | . 5 4 4 . 4 6 Classes Destroyed 14 | . 6 1 3 . 3 1 Worker 2 | . . . 1 . . 1 Builder 2 | . 1 . . . . 1 Hauler 5 | . 1 . 4 . . . Recycler 2 | . . . 2 . . . Mechanic 1 | . . . 1 . . . Operator 1 | . 1 . . . . . Turret 1 | . . . . . 1 . Watcher 4 | . 3 . 1 . . . Swarmer 11 | . 5 3 2 . . 1 Grunt 25 | . 9 2 8 . . 6 Duelist 1 | . . . . . . 1 Sentry 2 | . . 2 . . . . Zionite 8 | . . . . . 8 . Assembled 4 | . . . . . 4 . Best Kill Streak 9 | . 9 3 5 . 8 3 Combat Bots Only 9 | . 9 3 4 . 4 3 Max Kills in Single Turn 3 | . 2 3 2 . 2 2 Gunslinging . | . . . . . . . Exploded 3 | . 2 3 2 . 2 1 Melee 1 | . . . . . . 1 Uniques/NPCs Destroyed 4 | . . . . . 4 . 8R-AWN (-9/Exiles) EX-HEX (-9/Exiles) EX-BIN (-9/Exiles) EX-DEC (-9/Exiles) Combat | -11 -10 -10 -9 -9 -9 -8 -------- Run | Scr Mat Min Mat Min Exi Min Damage Taken 3333 | . 519 317 339 . 1054 1104 Core 524 | . 98 26 8 . 246 146 Absorbed by Shields . | . . . . . . . Core Remaining (%) 75 | 100 . 50 . . . . Volleys Fired 247 | . 47 18 56 . 107 19 Largest 2 | . 2 2 2 . 2 2 Hottest 70 | . 60 70 50 . 55 48 Shots Fired 397 | . 85 34 106 . 148 24 Gun 348 | . 81 31 101 . 124 11 Cannon . | . . . . . . . Launcher 41 | . 4 3 5 . 16 13 Special 8 | . . . . . 8 . Kinetic 309 | . 43 30 101 . 124 11 Thermal 9 | . . 1 . . 8 . Explosive 41 | . 4 3 5 . 16 13 Electromagnetic 38 | . 38 . . . . . Robot Hit Streak 17 | . 17 8 13 . 17 14 Robot Miss Streak 5 | . 5 3 3 . 4 2 Penetration Max 1 | . . . . . 1 . Secondary Targets 3 | . 3 . . . . . Max Gunslinging Chain 1 | . 1 . . . . . Shots Hit Robots 259 | . 58 19 72 . 93 17 Core Hits 152 | . 31 14 33 . 47 27 Critical Kills 7 | . . . . . 7 . Critical Parts Destroyed 13 | . 1 . . . 12 . Critical Strikes 20 | . 1 . . . 19 . Destroy 20 | . 1 . . . 19 . Melee Attacks . | . . . . . . . Impact . | . . . . . . . Slashing . | . . . . . . . Piercing . | . . . . . . . Sneak Attacks . | . . . . . . . Combat Hostiles . | . . . . . . . Follow-up Attacks . | . . . . . . . Damage Inflicted 6511 | . 1181 399 1442 . 2272 1217 Guns 3491 | . 612 150 999 . 1636 94 Cannons . | . . . . . . . Explosions 2993 | . 569 249 443 . 630 1102 Melee . | . . . . . . . Ramming 21 | . . . . . . 21 Kinetic 3110 | . 231 150 999 . 1636 94 Thermal 114 | . 83 . 25 . 6 . Explosive 2742 | . 343 249 418 . 630 1102 Electromagnetic 524 | . 524 . . . . . Impact . | . . . . . . . Slashing . | . . . . . . . Piercing . | . . . . . . . Highest Corruption . | . . . . . . . Average Corruption . | . . . . . . . Corruption Purged . | . . . . . . . Overload Shots . | . . . . . . . Overflow Damage 36 | . 8 . . . 5 23 Projectiles . | . . . . . . . Explosions 36 | . 8 . . . 5 23 Melee . | . . . . . . . Knockbacks . | . . . . . . . Impact . | . . . . . . . Kinetic . | . . . . . . . Secondary . | . . . . . . . Self-Inflicted Damage 198 | . 93 25 . . 22 58 Shots 16 | . 5 2 . . 1 8 Rammed 4 | . . . . . . 4 Targets Rammed 5 | . . . . . . 5 Kicked . | . . . . . . . Crushed 1 | . . . . . . 1 Highest Temperature 95 | . 62 25 95 . 70 25 Average Temperature 17 | . 21 11 22 . 14 10 Received Heat Transfer 717 | . 126 126 150 . . 315 Siege Activations . | . . . . . . . Robots Corrupted . | . . . . . . . Combat Hostiles . | . . . . . . . Parts Fried 3 | . 3 . . . . . Impact Corruptions . | . . . . . . . Robots Melted . | . . . . . . . Combat Hostiles . | . . . . . . . Parts Melted . | . . . . . . . Heat Transferred 254 | . 150 . 50 . 54 . Parts Sabotaged . | . . . . . . . Parts Stolen . | . . . . . . . Parts Stripped . | . . . . . . . Power Chain Reactions 3 | . 3 . . . . . Missiles Intercepted . | . . . . . . . Alert | -11 -10 -10 -9 -9 -9 -8 ------- Run | Scr Mat Min Mat Min Exi Min Peak Influence 379 | . 379 125 350 127 . 225 Initial 127 | . . . 21 127 . . Average 143 | . 153 71 184 127 . 128 Maximum Alert Level 1 | . 1 . 1 . . 1 Low Security (%) 73 | 100 72 100 47 100 . 93 Level 1 26 | . 27 . 52 . . 6 Level 2 . | . . . . . . . Level 3 . | . . . . . . . Level 4 . | . . . . . . . Level 5 . | . . . . . . . High Security . | . . . . . . . Max Security . | . . . . . . . Squads Dispatched 6 | . 3 . 3 . . . Investigation 4 | . 2 . 2 . . . Extermination . | . . . . . . . Reinforcement 2 | . 1 . 1 . . . Assault . | . . . . . . . Garrison . | . . . . . . . Intercept . | . . . . . . . Construction Impeded . | . . . . . . . Haulers Reinforced . | . . . . . . . Active Scanning Responses . | . . . . . . . Cargo Convoy Interrupts . | . . . . . . . Stealth | -11 -10 -10 -9 -9 -9 -8 --------- Run | Scr Mat Min Mat Min Exi Min Distress Signals 1 | . . . 1 . . . Communications Jammed . | . . . . . . . Distress Signals . | . . . . . . . Times Spotted 105 | . 23 4 32 . 33 13 Peak Tracking Total 9 | . 3 2 6 . 9 6 Tactical Retreats 4 | . . . . . 4 . Traps | -11 -10 -10 -9 -9 -9 -8 ------- Run | Scr Mat Min Mat Min Exi Min Traps Triggered . | . . . . . . . Indirectly . | . . . . . . . Trap Hack Attempts . | . . . . . . . Triggered . | . . . . . . . Disarmed . | . . . . . . . Reprogrammed . | . . . . . . . Reused . | . . . . . . . Traps Extracted . | . . . . . . . Installed . | . . . . . . . Triggered . | . . . . . . . Exploded 3 | . . . . . 3 . Machines | -11 -10 -10 -9 -9 -9 -8 ---------- Run | Scr Mat Min Mat Min Exi Min Machines Disabled 25 | . 3 1 5 . 16 . Max in Single Turn 3 | . 1 1 3 . 2 . Machines Sabotaged . | . . . . . . . Garrisons Compromised . | . . . . . . . Overloaded Fab Kills . | . . . . . . . Hacking | -11 -10 -10 -9 -9 -9 -8 --------- Run | Scr Mat Min Mat Min Exi Min Machines Accessed 19 | . 9 . 9 . 1 . Terminals 12 | . 7 . 5 . . . Fabricators . | . . . . . . . Repair Stations 1 | . . . 1 . . . Recycling Units 4 | . 2 . 2 . . . Scanalyzers 1 | . . . 1 . . . Garrison Access . | . . . . . . . Total Hacks 37 | . 21 . 15 . 1 . Successful 21 | . 11 . 9 . 1 . Failed 16 | . 10 . 6 . . . Catastrophic . | . . . . . . . Database Lockouts . | . . . . . . . Manual 9 | . 4 . 5 . . . Terminals 28 | . 19 . 9 . . . Fabricators . | . . . . . . . Repair Stations 2 | . . . 2 . . . Recycling Units 4 | . 2 . 2 . . . Scanalyzers 2 | . . . 2 . . . Garrison Access . | . . . . . . . Terminal Hacks 12 | . 8 . 3 . 1 . Record 1 | . . . . . 1 . Prototype ID Bank 2 | . 2 . . . . . Terminal Index 1 | . 1 . . . . . Unreport Threat 1 | . 1 . . . . . Locate Traps 3 | . 1 . 2 . . . Dispatch Records 1 | . 1 . . . . . Hauler Manifests 1 | . 1 . . . . . Zone Layout 2 | . 1 . 1 . . . Fabricator Hacks . | . . . . . . . Repair Station Hacks 2 | . . . 2 . . . Scan Component 1 | . . . 1 . . . Repair 1 | . . . 1 . . . Recycling Unit Hacks . | . . . . . . . Scanalyzer 2 | . . . 2 . . . Insert Component 1 | . . . 1 . . . Analyze 1 | . . . 1 . . . Garrison Access Hacks . | . . . . . . . Unauthorized Hacks 5 | . 3 . 2 . . . Terminals 1 | . 1 . . . . . Assimilate 1 | . 1 . . . . . Fabricators . | . . . . . . . Repair Stations . | . . . . . . . Recycling Units 4 | . 2 . 2 . . . Tunnel 4 | . 2 . 2 . . . Scanalyzers . | . . . . . . . Garrison Access . | . . . . . . . Data Cores Recovered . | . . . . . . . Used . | . . . . . . . Hacking Detections 13 | . 6 . 7 . . . Full Trace Events . | . . . . . . . Feedback Events . | . . . . . . . Feedback Blocked . | . . . . . . . Robot Schematics Acquired . | . . . . . . . Robots Built . | . . . . . . . Authchips . | . . . . . . . Time . | . . . . . . . Total Robot Build Rating . | . . . . . . . Part Schematics Acquired 1 | . . . 1 . . . Parts Built . | . . . . . . . Authchips . | . . . . . . . Time . | . . . . . . . Total Part Build Rating . | . . . . . . . Parts Repaired 1 | . . . 1 . . . Time 26 | . . . 26 . . . Parts Recycled . | . . . . . . . Recycled Matter . | . . . . . . . Retrieved Matter . | . . . . . . . Retrieved Components . | . . . . . . . Parts Scanalyzed 1 | . . . 1 . . . Part Schematics Acquired 1 | . . . 1 . . . Parts Damaged . | . . . . . . . Bothacking | -11 -10 -10 -9 -9 -9 -8 ------------ Run | Scr Mat Min Mat Min Exi Min Used RIF Installer . | . . . . . . . Robots Hacked . | . . . . . . . Non-combat . | . . . . . . . Combat . | . . . . . . . Robot Hacks Applied . | . . . . . . . Relay Couplers Released . | . . . . . . . Robots Rewired . | . . . . . . . Allies Hacked . | . . . . . . . Hacks Repelled . | . . . . . . . Allies | -11 -10 -10 -9 -9 -9 -8 -------- Run | Scr Mat Min Mat Min Exi Min Total Allies 5 | . 1 4 . . . . Largest Group 4 | . 1 4 4 . . . Highest-Rated Group 71 | . 10 71 71 . . . Highest-Rated Ally 31 | . 10 31 31 . . . Total Orders . | . . . . . . . Ally Attacks 30 | . . . 30 . . . Total Damage 292 | . . . 292 . . . Kills 9 | . . . 9 . . . Allies Corrupted . | . . . . . . . Allies Melted . | . . . . . . . Intel | -11 -10 -10 -9 -9 -9 -8 ------- Run | Scr Mat Min Mat Min Exi Min Robot Analysis Total . | . . . . . . . Derelict Logs Recovered 3 | . . 2 . 1 . . Drone Launches . | . . . . . . . Drone Recoveries . | . . . . . . . Exploration | -11 -10 -10 -9 -9 -9 -8 ------------- Run | Scr Mat Min Mat Min Exi Min Turns Passed 5114 | 2 841 631 1128 171 1979 362 Spaces Moved 2288 | 1 459 356 461 77 828 106 Core . | . . . . . . . Treads 1742 | . 44 356 461 77 701 103 Legs 546 | 1 415 . . . 127 3 Wheels . | . . . . . . . Hover . | . . . . . . . Flight . | . . . . . . . Fastest Speed 120 | 120 120 160 145 225 120 225 Average Speed 186 | 120 152 160 195 225 198 262 Slowest Speed 385 | 120 190 160 240 225 305 385 Overloaded Moves . | . . . . . . . Propulsion Burnouts . | . . . . . . . Robots Hopped . | . . . . . . . Cave-ins Triggered . | . . . . . . . Exploration Rate (%) 51 | 2 94 86 54 25 78 21 Regions Visited 6 Branch Regions 4 Pre-discovered Areas 7 | . 2 1 2 1 1 . Known Exits Taken 2 | . . . 1 . 1 . Unknown Exits Taken 4 | 1 1 1 . 1 . . Scrap Searched 1 | . . 1 . . . . Spaces Dug . | . . . . . . . Terrain Destroyed 143 | . 16 16 22 . 24 65 Melee . | . . . . . . . Projectile 7 | . . . . . 7 . AOE 135 | . 16 16 22 . 16 65 Terrain Rammed . | . . . . . . . Walls Destroyed . | . . . . . . . Machines Disabled . | . . . . . . . Actions | -11 -10 -10 -9 -9 -9 -8 --------- Run | Scr Mat Min Mat Min Exi Min Total 2797 | 2 522 388 598 76 1055 156 Wait 82 | . . . 30 . 37 15 Move 2282 | . 458 355 460 76 827 106 Hop . | . . . . . . . Pick Up 51 | . 3 7 17 . 24 . Fast Attach 12 | . 3 . 2 . 7 . Attach 20 | . 4 2 4 . 7 3 Detach 2 | . . . . . 1 1 Swap 50 | . 4 5 12 . 22 7 Drop 46 | 2 3 1 17 . 23 . Fire 247 | . 47 18 56 . 107 19 Melee . | . . . . . . . Ram . | . . . . . . . Kick . | . . . . . . . Crush 5 | . . . . . . 5 Escape Stasis . | . . . . . . . Rewire . | . . . . . . . Trap . | . . . . . . . Miscellaneous . | . . . . . . . Route ------- -11/Scrapyard -10/Materials (discovered 3 exits: *Mat x2 / [*Min]) -10/Mines (discovered 2 exits: *Mat x2) -9/Materials (discovered 2 exits: *Mat / *Min) -9/Mines (discovered 2 exits: Mat / *Exi) -9/Exiles (discovered 2 exits: *Min x2) -8/Mines History --------- Turn | Location | Event 3 | -11/Scrapyard | Discovered new exit (range 0) 3 | -11/Scrapyard | Entered Materials 138 | -10/Materials | Discovered new exit (range 16) 308 | -10/Materials | Build established: Mutant 355 | -10/Materials | Destroyed 9 combat bots 456 | -10/Materials | Discovered new exit (range 8) 659 | -10/Materials | Discovered new exit (range 5) 844 | -10/Materials | Entered Mines 1030 | -10/Mines | Learned location of Zion (-7) 1090 | -10/Mines | Discovered new exit (range 7) 1356 | -10/Mines | Assisted by bots powering up and referring to "LRC-V3" 1460 | -10/Mines | Received a Mining Laser from a helpful Derelict 1460 | -10/Mines | Discovered new exit (range 5) 1475 | -10/Mines | Entered Materials 1475 | -9/Materials | Accompanied by 4 allies 1475 | -9/Materials | Evolved 2 slots: Utility x2 1476 | -9/Materials | Identified exit to Mines 2058 | -9/Materials | Repaired Lgt. Armor Plating 2257 | -9/Materials | Discovered new exit (range 11) 2603 | -9/Materials | Entered Mines 2604 | -9/Mines | Learned location of Storage (-8) 2734 | -9/Mines | Identified exit to Materials 2765 | -9/Mines | Deemed a non-threat by the Exiles lab entrance 2765 | -9/Mines | Discovered new exit (range 5) 2774 | -9/Mines | Entered Exiles 2775 | -9/Exiles | Identified exit to Mines 2826 | -9/Exiles | Met 8R-AWN 2867 | -9/Exiles | Met EX-HEX 2956 | -9/Exiles | Met EX-DEC 3717 | -9/Exiles | Attacked by the Exiles 3863 | -9/Exiles | Lost 5 parts (1p3u1w) 3892 | -9/Exiles | Destroyed 8R-AWN 3896 | -9/Exiles | Found Prototype Ballistic Gun 3901 | -9/Exiles | Found Prototype Ballistic Gun 3903 | -9/Exiles | Found Prototype Protection 3911 | -9/Exiles | Found Prototype Processor 3911 | -9/Exiles | Identified Exp. Targeting Computer 3920 | -9/Exiles | Found Prototype Device 3920 | -9/Exiles | Identified AS-neutralizer No. 17b 3999 | -9/Exiles | Core integrity fell below 50% 4039 | -9/Exiles | Identified 8R-AWN's Boregun (x2) 4295 | -9/Exiles | Destroyed EX-HEX 4320 | -9/Exiles | Destroyed EX-BIN 4359 | -9/Exiles | Destroyed EX-DEC 4367 | -9/Exiles | Build established: Scavenger-Mutant 4397 | -9/Exiles | Found Prototype Device 4397 | -9/Exiles | Identified System Purifier 4439 | -9/Exiles | Identified 8R-AWN's Armor/EX 4704 | -9/Exiles | Build established: Mutant 4718 | -9/Exiles | Discovered exit to Mines (range 11) 4753 | -9/Exiles | Entered Mines 5098 | -8/Mines | Core integrity fell below 20% 5115 | -8/Mines | Destroyed by S-10 Pest with Light Assault Rifle Last Messages --------------- 05100_ U-05 Engineer lays Concrete. 05100_ Acquired 16 matter. 05100_ U-05 Engineer lays Concrete. 05101_ U-05 Engineer builds a Wall. 05101_ Rocket Launcher destroyed. 05101_ U-05 Engineer builds a Wall. 05103_ Penetrated by Slug. 05103_ G-47 Trooper destroyed. 05106_ U-05 Engineer builds a Wall. 05106_ Penetrated by Slug. 05108_ Hvy. Assault Rifle destroyed. 05108_ Acquired 48 matter. 05108_ K-01 Serf collects debris. 05109_ Penetrated by Slug. 05109_ U-05 Engineer lays Concrete. 05112_ K-01 Serf collects debris. 05112_ U-05 Engineer lays Concrete. 05114_ S-10 Pest destroyed. 05114_ K-01 Serf destroyed. 05114_ U-05 Engineer lays Concrete. Map ----- +----------------------------------------------------+ | | | | | ???????????????????????????????????????????????? | | ???????????????????????????????????????????????? | | ???????????????????????????????????????????????? | | ???????????????????????????????????????????????? | | ???????????????????????????????????????????????? | | ???????????????????????????????????????????????? | | ???????????????????????????????????????????????? | | ???????????????????????????????????????????????? | | ???????????????????????????????????????????????? | | ???????????????????????????????????????????????? | | ???????????????????????????????????????????????? | | ??????????????????????????? #??????????????????? | | ??????????????????????????? #?????????#????????? | | ??????????????????????????? #???????? #????????? | | ??????????????????????????? ###?????? #????????? | | ??????????????????????????? ##????? #????????? | | ??????????????????????????? ????? #????????? | | ??????????????????????????? ?????? #????????? | | ?????????????????????????## ?????? #????????? | | ????????????????????###?## ??????# ##???#???? | | ?#######???????????## ## ?????## # #???? | | ## ###?????????# ####### #???? | | # ##????????# # #???? | | # #?????????# @ [g =%* u #???? | | #?????????## *[==s % #???? | | #??????????### =%* # ## u #???? | | ## ##????????????##### ## #? #??? | | #### #????????#######??# #?? ## #?? | | #??? #???????##### ##?# #####?? #??? #? | | #??? ##????#### ## ### ##?????? #????? #? | | #???###?????# # ## ##????? #???????#? | | ############## # #?????? ????????? | | ##?????? #???????? | | ##????????#???????? | | ############## # ##?????????????????? | | ?????????????# # ##??????????????????? | | ?????????????##### ## ##???????????????????? | | ?????????????????##### ##????????????????????? | | ?????????????????????#####?????????????????????? | | ???????????????????????????????????????????????? | | ???????????????????????????????????????????????? | | ???????????????????????????????????????????????? | | ???????????????????????????????????????????????? | | ???????????????????????????????????????????????? | | ???????????????????????????????????????????????? | | ???????????????????????????????????????????????? | | ???????????????????????????????????????????????? | | ???????????????????????????????????????????????? | +----------------------------------------------------+ Best States ------------- Heat Dissipation 54 Energy Generation 19 Energy Capacity 310 Matter Stores 350 Matter Capacity 450 Sight Range 16 Terrain Scan Density 10 Additional Mass Support 12 Armor Coverage 1000 Resistance: EX 90 Weapon Cycling 25 Evasion (%) 55 Targeting Accuracy 12 Recoil Reduction 2 Item Schematics ----------------- Adv. Treads | -9/Materials | Scanalyzed Robot Schematics ------------------ None Fabricated ------------ Nothing Alien Tech Used ----------------- None Achievements -------------- None Challenges ------------ None Game ------ Seed GodInsulationManipulator Manual? 0 Play Time 00:31:34 Cumulative 405.7 hours Start 2021.10.25 @ 21:08:20 End 2021.10.25 @ 21:54:55 Sessions 1 Manual Loads 0 Difficulty Rogue Special Mode None Game No. 414 Rogue 414 Adventurer 0 Explorer 0 Win Type - Total 7 Types 6/0/0/1/0/0/0/0/0 Lore% 79 Gallery% 91 Achievement% 69 Wizard Run 0 Options --------- ASCII 0 Keyboard 0 Movement Mouse Keybinds 1 Fullscreen 2 Font 24/Smallcaps Map View 76x50 Tactical HUD 1 Map Filters NONE Filters NONE Steam 1 RUN: 4990791a-6b76-44d6-a5b0-f937cadaeed1